bitfinex/quotes_ETHUSD_20240713
["timestamp","ask_amount","ask_price","bid_price","bid_amount"]
[1720914510359,1.08783021,3185.5,3185.2,7.42]
[1720914510677,1.08783021,3185.4,3185.2,7.42]
[1720914510827,1.08783021,3185.3,3185.2,7.42]
[1720914511229,0.55,3185.6,3185.2,7.42]
[1720914511477,1.08781069,3185.5,3185.2,7.42]
[1720914511771,1.08781069,3185.4,3185.2,7.42]
[1720914512061,1.0878209,3185.3,3185.2,7.42]
[1720914512658,3.5833209,3185.3,3185.2,7.42]
[1720914514372,3.5833209,3185.3,3184.4,3.1165799]
[1720914514373,3.78975299,3185.3,3184.4,0.1165799]
[1720914514576,2.3436,3185.1,3184.4,0.1165799]
[1720914514793,1.0878209,3185.0,3184.4,0.1165799]
[1720914514956,1.6378209,3185.0,3184.4,0.1165799]
[1720914515285,2.3436,3184.8,3184.4,0.1165799]
[1720914515439,1.0881309,3184.7,3184.4,0.1165799]
[1720914515638,2.3436,3184.8,3184.4,0.1165799]
[1720914515639,1.0881309,3184.6,3184.4,0.1165799]
[1720914515875,2.3436,3184.8,3184.4,0.1165799]
[1720914515876,1.0881309,3184.5,3184.4,0.1165799]
[1720914516030,1.0881309,3184.7,3184.4,0.1165799]
[1720914516235,1.0881309,3184.6,3184.4,1.66723789]
[1720914516532,0.55,3185.0,3184.4,0.87023789]
[1720914516533,1.08806558,3184.5,3184.4,0.87023789]
[1720914516759,0.55,3185.0,3184.4,0.87023789]
[1720914516964,1.08805655,3184.9,3184.4,0.1165799]
[1720914517176,1.08805655,3184.8,3184.4,0.1165799]
[1720914517468,1.08805655,3184.7,3184.4,0.1165799]
[1720914518434,2.3436,3184.8,3184.4,0.1165799]
[1720914518435,1.08811249,3184.6,3184.4,0.1165799]
[1720914518667,1.08811392,3184.5,3184.4,0.1165799]
[1720914519251,1.08811392,3184.5,3184.4,0.87023789]
[1720914519463,2.67158807,3185.2,3184.4,0.87023789]
[1720914519676,1.08803049,3185.1,3184.4,0.87023789]
[1720914519869,1.08803049,3185.0,3184.4,0.87023789]
[1720914520053,1.08803049,3184.9,3184.4,0.87023789]
[1720914520351,2.67158807,3185.2,3184.4,0.87023789]
[1720914520352,1.08803049,3184.8,3184.4,0.87023789]
[1720914520552,1.08803049,3184.7,3184.4,0.87023789]
[1720914520771,1.08803049,3185.1,3184.4,0.87023789]
[1720914520983,1.08803049,3185.0,3184.4,0.87023789]
[1720914521182,1.08803049,3185.1,3184.4,0.87023789]
[1720914521551,2.67158807,3185.2,3184.4,0.87023789]
[1720914521756,1.08799886,3185.1,3184.4,0.87023789]
[1720914521956,1.08799886,3185.0,3184.4,0.87023789]
[1720914522157,1.08798589,3184.9,3184.4,0.87023789]
[1720914522478,1.08798589,3184.8,3184.4,0.87023789]
[1720914522784,1.08798589,3184.7,3184.4,0.87023789]
[1720914522977,1.08798589,3185.1,3184.4,0.87023789]
[1720914523179,1.08798589,3185.0,3184.4,0.87023789]
[1720914523359,1.08798589,3184.9,3184.4,0.87023789]
[1720914523554,2.67158807,3185.2,3184.4,0.87023789]
[1720914523555,1.08798589,3185.1,3184.4,0.87023789]
[1720914524870,1.08799848,3185.0,3184.4,0.87023789]
[1720914525069,1.08799942,3184.9,3184.4,0.87023789]
[1720914525392,1.08799942,3184.8,3184.4,0.87023789]
[1720914525582,1.08799942,3185.1,3184.4,0.87023789]
[1720914528188,2.3156,3185.0,3184.4,0.1165799]
[1720914528502,1.63807641,3184.9,3184.4,0.1165799]
[1720914528700,1.08812061,3184.8,3184.4,0.1165799]
[1720914528861,0.55,3184.9,3184.4,0.1165799]
[1720914528862,1.08812061,3184.7,3184.4,0.1165799]
[1720914529063,1.08812061,3184.6,3184.4,0.1165799]
[1720914529376,0.55,3184.9,3184.4,0.1165799]
[1720914529377,1.08812061,3184.5,3184.4,0.1165799]
[1720914531592,1.08812865,3184.5,3184.4,0.1165799]
[1720914534786,1.08808191,3184.5,3184.4,0.1165799]
[1720914535191,0.55,3184.9,3184.4,0.1165799]
[1720914535396,1.37466984,3184.8,3184.4,0.1165799]
[1720914535583,1.63810984,3184.7,3184.4,0.1165799]
[1720914535776,1.08810984,3184.6,3184.4,0.1165799]
[1720914536976,0.55,3184.5,3184.4,0.1165799]
[1720914537180,1.63810984,3184.5,3184.4,0.1165799]
[1720914537585,4.02700984,3184.5,3184.4,0.1165799]
[1720914538081,2.9389,3184.5,3184.4,0.1165799]
[1720914538282,4.0271125,3184.5,3184.4,0.1165799]
[1720914538979,4.42982375,3184.5,3184.4,0.1165799]
[1720914540900,4.42984667,3184.5,3184.4,0.1165799]
[1720914542976,4.02713542,3184.5,3184.4,0.1165799]
[1720914543181,1.08823542,3184.5,3184.4,0.1165799]
[1720914544572,1.08823542,3184.5,3184.4,2.5905799]
[1720914546788,1.08790886,3184.5,3184.4,2.5905799]
[1720914547114,0.32792019,3185.1,3184.4,2.5905799]
[1720914547415,1.08791415,3185.0,3184.5,0.25905799]
[1720914547563,1.08791415,3184.9,3184.8,7.42]
[1720914548876,0.32798119,3185.8,3184.8,7.42]
[1720914549082,1.08774032,3185.7,3184.8,7.42]
[1720914549285,1.08774032,3185.6,3184.9,0.9333]
[1720914549468,1.08774032,3185.7,3184.9,0.9333]
[1720914549869,1.08774594,3185.6,3184.9,0.9333]
[1720914550086,1.08774594,3185.5,3184.9,0.9333]
[1720914550286,1.08774111,3185.4,3184.9,0.9333]
[1720914550490,1.08774111,3185.3,3185.0,0.83533]
[1720914550701,1.08774111,3185.7,3185.0,0.83533]
[1720914551001,1.08774111,3185.7,3185.1,2.474]
[1720914553111,1.0877285,3185.6,3185.1,2.474]
[1720914553416,1.0877285,3185.5,3185.2,7.42]
[1720914553702,1.0877285,3185.4,3185.3,0.9894]
[1720914554115,1.08761937,3185.4,3185.3,0.9894]
[1720914554582,1.96162799,3186.2,3185.3,0.9894]
[1720914554786,1.08761612,3186.1,3185.3,0.9894]
[1720914555009,1.08761612,3186.0,3185.4,0.84094]
[1720914555321,1.08761612,3185.9,3185.4,0.84094]
[1720914555604,1.08761612,3185.8,3185.4,0.84094]
[1720914555802,1.08761612,3185.7,3185.4,0.84094]
[1720914556008,1.08761612,3185.6,3185.4,0.84094]
[1720914556220,0.32799542,3186.3,3185.4,0.84094]
[1720914556512,3.59995584,3186.2,3185.4,0.84094]
[1720914556693,1.08760531,3186.1,3185.4,0.84094]
[1720914559527,2.51284523,3186.2,3185.4,0.84094]
[1720914559820,1.08763618,3186.1,3185.4,0.84094]
[1720914559997,1.08764312,3186.0,3185.4,0.84094]
[1720914560199,1.08764312,3185.9,3185.4,0.84094]
[1720914560432,1.08764312,3185.8,3185.4,0.84094]
[1720914560637,1.08764312,3186.1,3185.4,0.84094]
[1720914560804,1.08764312,3186.0,3185.4,0.84094]
[1720914561011,1.08764312,3185.9,3185.4,0.84094]
[1720914561212,1.08764312,3185.8,3185.4,0.84094]
[1720914561420,1.08764312,3185.7,3185.4,0.84094]
[1720914561648,0.55,3186.2,3185.4,0.84094]
[1720914561849,1.08761975,3186.1,3185.2,7.42]
[1720914562050,1.08761975,3186.0,3185.2,7.42]
[1720914562267,1.08761975,3185.9,3185.2,7.42]
[1720914562461,1.08761975,3185.8,3185.2,7.42]
[1720914562751,1.08761265,3185.7,3185.4,0.797]
[1720914563047,1.07836719,3186.2,3185.4,0.797]
[1720914563220,1.08761248,3186.1,3185.4,0.797]
[1720914563421,1.08761248,3186.0,3185.4,0.797]
[1720914563727,1.08761248,3185.9,3185.4,0.797]
[1720914563932,1.08761248,3186.1,3185.4,0.797]
[1720914564243,1.08761248,3186.0,3185.4,0.797]
[1720914564447,1.08761248,3186.1,3185.4,0.797]
[1720914564621,1.08761248,3186.0,3185.4,0.797]
[1720914564824,1.08761248,3185.9,3185.4,0.797]
[1720914565002,1.08761248,3186.1,3185.4,0.797]
[1720914565204,1.33700999,3186.1,3185.4,0.797]
[1720914565403,1.08761248,3186.0,3185.4,0.797]
[1720914566035,1.08761248,3186.0,3185.2,7.42]
[1720914566036,0.24939751,3186.1,3185.2,8.217]
[1720914566208,1.63763923,3186.0,3185.2,0.797]
[1720914566523,1.08763923,3185.9,3185.2,0.797]
[1720914567347,1.2763429,3185.9,3185.2,0.797]
[1720914567654,1.08763923,3185.8,3185.2,0.797]
[1720914569341,0.18870367,3185.9,3185.2,0.797]
[1720914569543,1.08770401,3185.8,3185.2,0.797]
[1720914569746,1.08770401,3185.7,3185.2,0.797]
[1720914569924,1.08770401,3185.6,3185.2,0.797]
[1720914570126,1.08770401,3185.5,3185.2,0.797]
[1720914570442,1.08770401,3185.4,3185.2,0.410633]
[1720914570634,0.55,3186.0,3185.4,0.797]
[1720914570832,1.08764747,3185.9,3185.4,0.797]
[1720914571060,1.08764747,3185.8,3185.4,0.797]
[1720914571224,1.08764747,3185.7,3185.4,0.797]
[1720914571419,1.08764747,3185.6,3185.4,0.797]
[1720914571625,1.08764747,3185.5,3185.4,0.797]
[1720914572634,0.52836719,3186.2,3185.4,0.797]
[1720914572835,1.08765001,3185.5,3185.4,0.797]
[1720914573218,0.55,3186.1,3185.4,0.797]
[1720914573419,1.08767352,3186.0,3185.4,0.797]
[1720914573625,1.08767352,3185.9,3185.4,0.797]
[1720914573830,1.08767352,3185.8,3185.6,0.797]
[1720914574126,1.08767352,3185.7,3185.4,0.797]
[1720914574326,1.08767352,3185.6,3185.4,0.797]
[1720914574543,1.08767352,3185.5,3185.4,0.797]
[1720914574722,1.08767352,3185.5,3185.4,1.10648]
[1720914575867,1.08761028,3185.5,3185.4,1.10648]
[1720914577262,1.08761028,3185.5,3185.4,5.6713]
[1720914577472,1.08761028,3185.5,3185.4,8.6713]
[1720914578471,2.2603,3186.6,3185.6,2.3673]
[1720914578636,1.08745621,3186.5,3186.0,0.797]
[1720914578839,1.08745621,3186.4,3186.0,0.797]
[1720914579096,1.08745519,3186.3,3186.0,0.797]
[1720914579240,1.08745166,3186.3,3186.2,0.797]
[1720914579736,1.08745166,3186.3,3186.0,0.797]
[1720914579938,1.08745166,3186.2,3185.8,0.797]
[1720914580248,1.08745166,3186.1,3185.8,0.797]
[1720914580445,1.08745166,3186.5,3185.8,0.797]
[1720914580655,1.08745166,3186.5,3186.0,0.797]
[1720914581352,1.42222683,3186.5,3186.0,0.797]
[1720914581565,1.08745166,3186.4,3185.8,0.797]
[1720914582332,0.33477517,3186.5,3185.8,0.797]
[1720914582574,1.08747431,3186.4,3185.8,0.797]
[1720914583896,0.55,3186.3,3185.6,0.797]
[1720914584177,1.25122174,3186.2,3185.6,0.797]
[1720914584334,1.08747431,3186.1,3185.5,3.0]
[1720914584533,1.08747431,3186.2,3186.0,0.797]
[1720914584734,1.08747431,3186.1,3186.0,0.797]
[1720914584945,1.08747431,3186.4,3186.0,0.797]
[1720914585173,1.63747431,3186.3,3186.0,0.797]
[1720914585393,1.08747431,3186.2,3186.0,0.797]
[1720914585691,1.08749874,3186.1,3185.8,0.797]
[1720914585854,0.55,3186.5,3185.8,0.797]
[1720914585855,0.28103,3186.4,3185.8,0.797]
[1720914586207,0.28103,3186.4,3185.4,2.383]
[1720914586208,1.63757789,3186.3,3185.5,3.0]
[1720914586351,1.08757789,3186.2,3185.8,0.797]
[1720914586557,1.08757789,3186.1,3185.8,0.797]
[1720914586793,1.08757789,3186.0,3185.8,0.797]
[1720914586971,0.55,3186.3,3185.8,0.797]
[1720914586972,1.08757789,3186.2,3185.8,0.797]
[1720914587174,1.27943868,3186.2,3185.8,0.797]
[1720914587486,1.08757789,3186.1,3185.8,0.797]
[1720914588091,1.08757789,3186.0,3185.8,0.797]
[1720914588273,1.08757789,3185.9,3185.8,0.797]
[1720914588664,1.08755998,3185.9,3185.8,0.797]
[1720914588856,0.55,3186.3,3185.8,0.797]
[1720914589382,2.3259,3186.1,3185.1,2.383]
[1720914589688,2.3259,3186.1,3185.5,0.797]
[1720914589689,1.08757085,3186.0,3185.5,0.797]
[1720914589901,1.08757085,3186.0,3185.7,0.797]
[1720914590121,1.08757085,3186.1,3185.7,0.797]
[1720914590407,1.08757085,3186.0,3185.7,0.797]
[1720914590562,2.50877787,3186.3,3185.9,0.797]
[1720914590563,1.08757085,3186.2,3185.9,0.797]
[1720914592348,1.08753077,3186.1,3185.5,4.58043]
[1720914592604,1.08752131,3186.0,3185.8,0.797]
[1720914592819,1.08752131,3185.9,3185.8,0.797]
[1720914592970,1.08752131,3186.2,3185.8,0.797]
[1720914593374,3.04629918,3186.2,3185.8,0.797]
[1720914593583,1.08752131,3186.1,3185.8,0.797]
[1720914595511,1.08753888,3186.0,3185.8,0.797]
[1720914595676,1.08753888,3185.9,3185.8,0.797]
[1720914596583,1.08752252,3185.9,3185.8,0.797]
[1720914596791,1.08752252,3185.9,3185.6,0.797]
[1720914597096,1.08752252,3185.8,3185.6,0.797]
[1720914597306,1.52799802,3186.1,3185.6,0.797]
[1720914597504,1.08752252,3186.0,3185.6,0.797]
[1720914597909,3.04977754,3186.0,3185.6,0.797]
[1720914598087,1.08752252,3185.9,3185.6,0.797]
[1720914598493,3.04977754,3185.9,3185.6,0.797]
[1720914598801,1.08752252,3185.8,3185.6,0.797]
[1720914598998,0.4404755,3186.1,3185.6,0.797]
[1720914599202,1.96150448,3185.9,3185.6,0.797]
[1720914599410,1.08764233,3185.8,3185.6,0.797]
[1720914599591,1.08764233,3185.7,3185.6,0.797]
[1720914601118,2.4425,3186.2,3185.6,0.797]
[1720914601420,1.96095206,3186.0,3185.6,0.797]
[1720914601613,1.08761091,3185.9,3185.6,0.797]
[1720914601924,1.08761091,3185.8,3185.6,0.797]
[1720914602212,1.08762818,3185.9,3185.6,0.797]
[1720914602419,1.08762818,3185.8,3185.6,0.797]
[1720914602629,1.08762818,3185.7,3185.6,0.797]
[1720914604430,1.08761886,3185.7,3185.6,0.797]
[1720914604728,1.08761886,3185.7,3185.4,0.797]
[1720914604934,1.08761886,3185.6,3185.4,0.797]
[1720914606315,3.05006713,3185.6,3185.4,0.797]
[1720914606499,1.08761886,3185.5,3185.4,0.797]
[1720914606913,1.08761886,3185.5,3183.8,2.2975]
[1720914606914,2.2702,3185.4,3183.8,2.2975]
[1720914607202,2.2702,3185.4,3183.3,2.2975]
[1720914607203,2.28952298,3184.5,3183.3,2.2975]
[1720914607442,2.2702,3184.5,3183.7,0.797]
[1720914607766,3.9084899,3184.5,3183.7,0.797]
[1720914607911,4.60760196,3184.5,3183.7,0.797]
[1720914608443,4.60760196,3184.5,3183.3,2.2975]
[1720914609548,6.56271348,3184.5,3183.3,2.2975]
[1720914610423,4.60760196,3184.5,3183.3,2.2975]
[1720914610811,4.60763176,3184.5,3183.3,2.2975]
[1720914611247,4.60763921,3184.5,3183.3,2.2975]
[1720914613234,2.33743921,3184.5,3183.3,4.2115]
[1720914613420,1.63832715,3184.5,3183.4,3.0]
[1720914614054,1.63822911,3184.5,3183.4,3.0]
[1720914615069,1.08822911,3184.5,3183.4,3.0]
[1720914615265,0.32805519,3184.6,3184.0,2.3509]
[1720914615652,5.2958,3185.4,3184.0,2.3509]
[1720914615856,2.11276626,3185.3,3184.0,2.3509]
[1720914616177,0.32802164,3185.1,3184.0,2.3509]
[1720914616375,1.0880731,3185.0,3184.0,2.3509]
[1720914616883,0.55,3184.9,3184.0,2.3509]
[1720914617175,1.08808607,3184.8,3184.0,2.3509]
[1720914617475,0.55,3184.9,3184.0,2.3509]
[1720914617675,1.08808796,3184.8,3184.0,2.3509]
[1720914617875,1.08808613,3184.7,3184.0,2.3509]
[1720914618174,0.55,3185.0,3184.0,2.3509]
[1720914618481,1.08811716,3184.9,3184.0,2.3509]
[1720914618666,1.63811716,3184.8,3184.0,2.3509]
[1720914618983,1.08811716,3184.7,3184.0,2.3509]
[1720914619997,0.55,3184.6,3183.6,2.3936]
[1720914620163,0.55,3184.6,3183.7,3.0]
[1720914620575,0.32802164,3185.1,3183.7,3.0]
[1720914620576,0.55,3184.8,3183.7,3.0]
[1720914620791,1.08814851,3184.7,3183.7,3.0]
[1720914620999,1.63814851,3184.6,3183.7,3.0]
[1720914621206,0.55,3184.6,3183.7,3.0]
[1720914621857,0.55,3184.6,3183.7,10.42]
[1720914622056,0.84043,3184.6,3183.7,10.42]
[1720914622489,0.84043,3184.6,3183.7,7.42]
[1720914622490,1.08821459,3184.5,3183.7,7.42]
[1720914622986,1.63821459,3184.5,3183.7,7.42]
[1720914623667,0.55,3184.5,3183.7,7.42]
[1720914624566,1.6382418,3184.5,3183.7,7.42]
[1720914624799,2.06653898,3184.5,3183.7,7.42]
[1720914625910,2.06653898,3184.5,3183.2,7.42]
[1720914626081,2.06653898,3184.5,3183.2,9.8136]
[1720914626910,2.06674674,3184.5,3183.2,9.8136]
[1720914627111,4.42104674,3184.5,3183.2,9.8136]
[1720914627307,7.42104674,3184.5,3183.2,9.8136]
[1720914627526,7.42105796,3184.5,3183.2,9.8136]
[1720914630053,6.33259718,3184.5,3183.2,9.8136]
[1720914630197,7.42105262,3184.5,3183.2,9.8136]
[1720914631428,7.74899251,3184.5,3183.2,9.8136]
[1720914633310,6.66053707,3184.5,3183.2,9.8136]
[1720914633510,7.74900691,3184.5,3183.2,9.8136]
[1720914633710,7.74900691,3184.5,3182.7,2.3936]
[1720914633945,5.6203389,3184.4,3182.8,0.53936]
[1720914634216,1.08846984,3184.3,3182.7,2.3936]
[1720914634415,0.55,3184.2,3182.7,2.3936]
[1720914634654,1.08846984,3184.1,3182.7,2.3936]
[1720914634825,0.55,3184.0,3182.7,2.3936]
[1720914635019,1.08846984,3183.9,3182.8,0.53936]
[1720914635218,0.55,3183.8,3182.8,0.53936]
[1720914635549,1.08846984,3183.7,3182.8,0.53936]
[1720914635755,0.55,3183.6,3182.8,0.53936]
[1720914635918,1.08846984,3183.5,3182.8,0.53936]
[1720914636118,1.08846984,3183.5,3182.7,2.3936]
[1720914636650,1.08867272,3183.4,3182.7,3.1916]
[1720914636850,1.08867272,3183.3,3182.7,3.1916]
[1720914637051,0.55,3183.6,3182.7,3.1916]
[1720914637220,1.08864981,3183.5,3182.7,3.1916]
[1720914637562,0.55,3183.6,3182.7,3.1916]
[1720914637563,1.08864981,3183.4,3182.7,3.1916]
[1720914637718,1.08864981,3183.5,3182.7,4.55276]
[1720914637919,1.08864981,3183.4,3182.7,4.55276]
[1720914638219,1.08864981,3183.3,3182.9,0.798]
[1720914638421,1.08864981,3183.2,3182.9,0.798]
[1720914638619,1.08864981,3183.1,3182.9,0.798]
[1720914638953,1.08864981,3183.0,3182.9,1.253276]
[1720914639447,0.55,3183.6,3182.9,1.253276]
[1720914639652,1.08859497,3183.5,3182.9,1.253276]
[1720914639817,0.55,3183.8,3182.9,0.798]
[1720914639818,1.0885943,3183.4,3182.9,0.798]
[1720914640015,1.0885943,3183.7,3182.9,0.798]
[1720914640235,0.55,3183.6,3182.9,0.798]
[1720914640442,1.0885943,3183.5,3182.9,0.798]
[1720914640640,1.0885943,3183.4,3182.9,1.253276]
[1720914640848,1.0885943,3183.5,3182.9,1.253276]
[1720914641050,0.55,3183.6,3182.9,1.253276]
[1720914641051,1.0885943,3183.4,3182.9,1.253276]
[1720914641233,1.0885943,3183.3,3182.9,1.253276]
[1720914641437,1.0885943,3183.2,3182.9,1.253276]
[1720914641757,1.0885943,3183.1,3182.9,0.455276]
[1720914641961,1.348,3184.3,3183.0,3.0694]
[1720914642259,1.08851233,3184.2,3183.3,0.798]
[1720914642436,1.63851233,3184.1,3183.3,0.798]
[1720914642636,1.08851233,3184.0,3183.3,0.798]
[1720914642843,1.63851233,3183.9,3183.1,0.798]
[1720914643054,1.63850255,3183.8,3183.2,0.30694]
[1720914643246,1.08850255,3183.7,3183.2,0.30694]
[1720914643473,1.08850255,3183.6,3183.2,0.30694]
[1720914643762,1.08850255,3183.5,3183.2,0.30694]
[1720914643927,1.08850255,3184.0,3183.2,0.30694]
[1720914644129,0.55,3183.9,3183.2,0.30694]
[1720914644472,1.08850255,3183.8,3183.5,0.798]
[1720914644627,1.88650255,3184.3,3183.4,2.2714]
[1720914644828,1.08850255,3184.2,3183.4,2.2714]
[1720914645027,1.08850255,3184.1,3183.2,0.30694]
[1720914645256,1.08850255,3184.0,3183.2,1.10494]
[1720914645566,1.08850255,3183.9,3183.3,0.80175106]
[1720914645754,1.08850255,3183.8,3183.3,0.80175106]
[1720914645935,1.08850255,3183.7,3183.3,0.80175106]
[1720914646140,1.08850255,3183.6,3183.3,0.80175106]
[1720914646360,1.08844654,3183.5,3183.3,0.80175106]
[1720914646678,1.08844654,3183.4,3183.1,8.218]
[1720914647056,3.47393597,3184.1,3183.1,8.218]
[1720914647235,1.63845325,3184.0,3183.1,8.218]
[1720914647550,1.08845325,3183.9,3183.1,8.218]
[1720914648858,1.08845325,3183.9,3183.1,0.798]
[1720914649160,1.08845738,3183.8,3183.1,0.798]
[1720914649347,1.08845738,3183.7,3183.1,0.798]
[1720914649549,1.08845738,3183.7,3182.9,3.798]
[1720914649738,1.08846186,3183.6,3182.9,3.798]
[1720914649943,0.51123892,3183.9,3182.9,3.798]
[1720914649944,1.08846186,3183.5,3182.9,3.798]
[1720914650258,0.51123892,3183.9,3182.9,5.283056]
[1720914650461,1.63846373,3183.8,3182.9,3.798]
[1720914650625,1.08846373,3183.7,3182.9,3.798]
[1720914650829,0.55,3183.6,3183.1,0.798]
[1720914651171,1.08846373,3183.5,3182.9,0.798]
[1720914652464,1.08846373,3183.5,3182.7,2.2714]
[1720914652665,1.08846373,3183.5,3182.8,0.798]
[1720914652840,0.16384637,3183.5,3182.8,0.798]
[1720914653163,1.0884878,3183.4,3182.8,0.798]
[1720914653465,1.0884878,3183.3,3182.8,0.798]
[1720914653653,1.0884878,3183.5,3182.8,0.798]
[1720914654036,0.798,3183.3,3182.4,2.2714]
[1720914654232,1.0884878,3183.2,3182.4,2.2714]
[1720914654432,1.0884878,3183.1,3182.4,2.2714]
[1720914654761,1.0884878,3183.0,3182.4,2.2714]
[1720914655071,1.0884878,3182.9,3182.5,0.798]
[1720914655273,1.0884878,3183.4,3182.5,0.798]
[1720914655568,1.15397228,3183.3,3182.5,0.798]
[1720914655779,1.0884878,3183.2,3182.5,0.798]
[1720914656233,1.63871772,3183.1,3182.4,2.2714]
[1720914656436,1.63871772,3183.0,3182.4,2.2714]
[1720914656673,1.08871772,3182.9,3182.4,2.2714]
[1720914656880,0.19519723,3183.2,3182.4,2.2714]
[1720914656881,1.08871772,3183.1,3182.4,2.2714]
[1720914657670,1.08871772,3183.1,3182.7,0.798]
[1720914657872,3.0,3183.5,3183.0,2.4779]
[1720914657873,1.08871772,3183.4,3183.0,2.4779]
[1720914658168,1.08871772,3183.3,3183.0,2.4779]
[1720914658371,1.08871772,3183.2,3183.0,2.4779]
[1720914658550,1.08871772,3183.1,3183.0,2.4779]
[1720914661773,4.95064743,3184.0,3183.0,2.4779]
[1720914661774,0.32790366,3183.7,3183.0,2.4779]
[1720914662076,1.08847441,3183.6,3183.0,2.4779]
[1720914662274,1.08847451,3183.5,3183.0,2.4779]
[1720914662577,1.08847451,3183.4,3183.0,2.4779]
[1720914662749,1.08847451,3183.3,3183.0,2.4779]
[1720914663067,1.08847451,3183.2,3183.0,2.72569]
[1720914663265,1.08847451,3183.1,3183.0,2.72569]
[1720914663468,1.08847451,3183.6,3183.0,2.72569]
[1720914663667,1.08847451,3183.5,3183.0,2.4779]
[1720914663883,1.08847451,3183.4,3183.0,2.4779]
[1720914664054,1.08847451,3183.3,3183.0,2.4779]
[1720914664251,1.08847451,3183.2,3183.0,2.4779]
[1720914664482,1.08847451,3183.6,3183.0,2.4779]
[1720914664682,1.08847451,3183.5,3182.5,2.478]
[1720914664989,1.08853214,3183.4,3182.5,5.478]
[1720914665286,1.08853167,3183.3,3182.5,5.478]
[1720914665466,1.08853167,3183.2,3182.5,5.478]
[1720914665788,1.08853167,3183.1,3182.5,5.478]
[1720914665988,1.08853167,3183.0,3182.5,5.478]
[1720914666189,1.08853167,3182.9,3182.6,0.841959]
[1720914666390,1.08853167,3182.8,3182.6,0.841959]
[1720914666590,2.50403096,3183.6,3182.6,0.841959]
[1720914666789,1.08852837,3183.5,3182.5,5.478]
[1720914666988,1.08852837,3183.4,3182.5,5.478]
[1720914667287,1.08852837,3183.3,3182.5,5.478]
[1720914667456,1.08852837,3183.5,3182.5,2.478]
[1720914667653,2.50403096,3183.4,3182.5,2.478]
[1720914667855,1.4477843,3183.3,3182.5,2.478]
[1720914668093,1.08852837,3183.2,3182.5,2.478]
[1720914668294,1.08860501,3183.1,3182.5,2.478]
[1720914668487,1.08860501,3183.0,3182.5,2.478]
[1720914668797,1.08860501,3183.2,3182.5,2.478]
[1720914669088,1.08860501,3183.1,3182.5,2.478]
[1720914670862,1.08860501,3183.1,3182.3,7.42]
[1720914671092,0.55,3183.0,3182.3,7.42]
[1720914671270,1.08860501,3182.9,3182.3,7.42]
[1720914671486,0.55,3183.0,3182.3,7.42]
[1720914671674,1.08867124,3182.9,3182.3,8.4098]
[1720914671875,1.08867124,3182.8,3182.4,2.478]
[1720914672077,1.08867124,3182.7,3182.6,4.11345]
[1720914672275,0.32790366,3183.7,3182.6,4.11345]
[1720914672276,1.95829352,3183.5,3182.6,4.11345]
[1720914672639,1.0884891,3183.4,3182.7,2.478]
[1720914672779,1.0884891,3183.3,3182.8,0.659145]
[1720914672983,1.0884891,3183.4,3182.8,0.659145]
[1720914673169,1.0884891,3183.3,3182.8,0.659145]
[1720914673384,1.0884891,3183.2,3182.8,0.659145]
[1720914673615,1.0884891,3183.4,3182.8,0.659145]
[1720914674687,1.95829352,3183.5,3182.8,0.659145]
[1720914674898,1.08847985,3183.4,3182.8,0.659145]
[1720914675090,1.08847985,3183.3,3182.8,0.659145]
[1720914675319,1.08849443,3183.2,3182.8,0.659145]
[1720914675531,1.08849443,3183.1,3182.8,0.659145]
[1720914675738,1.08849443,3183.0,3182.8,0.659145]
[1720914675945,1.95989329,3183.5,3182.9,0.3137145]
[1720914676240,1.08849164,3183.4,3182.9,0.3137145]
[1720914676614,1.95989329,3183.5,3182.9,0.3137145]
[1720914676615,1.08849164,3183.3,3182.9,0.3137145]
[1720914676950,1.95989329,3183.5,3182.9,0.3137145]
[1720914676951,1.08849164,3183.2,3182.9,0.3137145]
[1720914677152,1.08849164,3183.1,3182.9,0.3137145]
[1720914677433,1.08849164,3183.0,3182.9,0.3137145]
[1720914677820,0.32790366,3183.7,3182.9,0.3137145]
[1720914678007,1.96015318,3183.5,3182.9,0.3137145]
[1720914678348,1.08845627,3183.4,3182.9,0.3137145]
[1720914681306,1.08848997,3183.3,3182.9,0.3137145]
[1720914681604,1.08848997,3183.2,3182.9,0.3137145]
[1720914681805,1.08848997,3183.1,3182.9,0.3137145]
[1720914682000,1.08848997,3183.0,3182.9,0.3137145]
[1720914682753,1.08848997,3183.0,3182.9,1.1117145]
[1720914683260,1.08848997,3183.0,3182.7,2.478]
[1720914683556,1.96015318,3183.5,3182.7,2.478]
[1720914683557,1.08848997,3182.9,3182.7,2.478]
[1720914683722,2.3526,3183.6,3182.8,0.798]
[1720914683723,3.59864315,3183.4,3182.8,0.798]
[1720914683903,3.40850747,3183.3,3182.8,0.798]
[1720914684102,1.08848997,3183.2,3182.8,0.798]
[1720914684342,0.35986432,3183.3,3182.8,0.798]
[1720914684528,1.08856551,3183.2,3182.8,0.798]
[1720914684729,1.08856551,3183.1,3182.4,5.4758]
[1720914684907,1.96050706,3183.2,3182.6,0.798]
[1720914685112,1.08862425,3183.1,3182.6,0.798]
[1720914686232,3.04913131,3183.1,3182.6,0.798]
[1720914686546,1.08862425,3183.0,3182.6,0.798]
[1720914687656,1.08861375,3182.9,3182.6,0.798]
[1720914687955,1.08861375,3182.8,3182.6,0.798]
[1720914688139,1.08861375,3183.0,3182.6,0.798]
[1720914688337,1.08861375,3182.9,3182.6,0.798]
[1720914688649,1.08861375,3182.8,3182.6,0.798]
[1720914688942,1.08861375,3182.7,3182.6,0.798]
[1720914689710,1.08861375,3182.9,3182.6,0.798]
[1720914689913,1.62866321,3182.9,3182.4,0.798]
[1720914690145,1.08861375,3182.8,3182.4,0.798]
[1720914690957,0.54004946,3182.9,3182.4,0.798]
[1720914691155,1.0886859,3182.7,3182.4,0.798]
[1720914691358,1.0886859,3182.6,3182.2,0.798]
[1720914691557,1.0886859,3182.8,3182.2,0.798]